bitfinex/quotes_ETHUSD_20241009
["timestamp","ask_amount","ask_price","bid_price","bid_amount"]
[1728461120553,1.74191095,2441.0,2440.7,8.19413]
[1728461120870,1.74191095,2441.0,2440.7,4.09706]
[1728461121175,1.74191095,2441.0,2440.7,8.19414]
[1728461121488,1.74191095,2441.0,2440.9,4.09684]
[1728461121966,0.7184,2441.2,2440.8,4.09701]
[1728461122181,1.74191095,2441.2,2440.9,4.90473]
[1728461122574,1.74191095,2441.2,2441.0,4.09667]
[1728461123815,1.74191095,2441.2,2440.9,0.808]
[1728461123986,1.74191095,2441.2,2440.9,4.9048]
[1728461126182,1.74191095,2441.2,2441.0,4.09665]
[1728461126803,1.74191095,2441.2,2440.9,4.90484]
[1728461127306,1.74191095,2441.2,2441.0,4.09665]
[1728461130880,1.74191095,2441.5,2441.3,4.09617]
[1728461131192,1.74191095,2441.5,2441.3,8.19225]
[1728461131323,1.74191095,2441.5,2441.3,4.09608]
[1728461131799,1.74191095,2441.5,2441.2,0.7851]
[1728461132061,1.74191095,2441.5,2441.2,4.88134]
[1728461132170,0.10901768,2441.4,2441.2,4.88134]
[1728461132409,1.74191095,2441.3,2441.2,4.88134]
[1728461132782,1.85092354,2441.3,2441.2,4.88134]
[1728461134308,0.10901259,2441.3,2441.2,5.779111]
[1728461134595,1.74191095,2441.5,2441.2,5.779111]
[1728461134596,1.74191095,2441.5,2441.2,1.682871]
[1728461134803,1.74191095,2441.5,2441.4,4.09601]
[1728461137110,1.74191095,2441.7,2441.5,4.0958]
[1728461137709,0.7184,2441.9,2441.5,4.0958]
[1728461137975,1.74191095,2441.7,2441.5,4.0958]
[1728461138893,1.74191095,2441.7,2441.4,8.19202]
[1728461139107,1.74191095,2441.7,2441.4,4.09601]
[1728461139509,1.74191095,2441.5,2441.3,4.09615]
[1728461139865,1.74191095,2441.5,2441.2,4.88132]
[1728461139997,1.74191095,2441.5,2441.2,8.97756]
[1728461141235,1.74191095,2441.5,2441.2,4.88132]
[1728461141456,1.74191095,2441.5,2441.3,4.09616]
[1728461143848,4.09494,2442.1,2441.3,0.897748]
[1728461144073,7.48,2442.2,2441.7,4.09539]
[1728461144074,0.7184,2442.0,2441.7,4.09539]
[1728461144283,1.74191095,2442.1,2441.9,4.09517]
[1728461144440,1.74191095,2442.1,2441.9,4.09507]
[1728461145564,1.74191095,2442.1,2441.8,4.88531]
[1728461146074,4.8129,2442.3,2441.8,4.88531]
[1728461146075,1.74191095,2441.9,2441.8,4.88531]
[1728461146449,0.7184,2442.3,2441.8,4.88531]
[1728461146450,1.74191095,2442.1,2442.0,4.095]
[1728461148674,1.8441431,2442.1,2442.0,4.095]
[1728461149628,1.8441431,2442.1,2441.8,8.98048]
[1728461149948,1.8441431,2442.1,2441.9,4.09515]
[1728461152736,1.8441431,2442.1,2441.8,9.878468]
[1728461154104,1.8441431,2442.1,2441.9,4.09507]
[1728461154900,1.8441431,2442.1,2442.0,4.095]
[1728461155189,1.8441431,2442.1,2442.0,5.0828218]
[1728461155585,1.8441431,2442.1,2442.0,0.9878218]
[1728461155932,1.8441431,2442.1,2441.8,4.88517]
[1728461155933,1.8441431,2442.1,2441.9,4.09514]
[1728461159300,1.8441431,2442.1,2441.8,4.88517]
[1728461159600,1.8441431,2442.1,2441.6,4.09565]
[1728461159601,2.46031095,2441.9,2441.6,4.09565]
[1728461159902,5.83743095,2441.7,2441.4,0.20463577]
[1728461160149,5.83743095,2441.7,2441.2,4.91419]
[1728461160150,1.74191095,2441.5,2441.2,4.91419]
[1728461160282,1.74191095,2441.3,2441.2,5.120696]
[1728461160476,0.10188404,2441.4,2441.3,4.09606]
[1728461160793,1.74191095,2441.5,2441.2,9.216956]
[1728461160990,1.74191095,2441.5,2441.2,5.120696]
[1728461161304,1.74191095,2441.5,2441.2,9.216926]
[1728461161677,1.74191095,2441.5,2441.2,9.216936]
[1728461161916,1.74191095,2441.3,2441.0,4.90067]
[1728461162225,1.74191095,2441.3,2441.1,4.09646]
[1728461162838,1.74191095,2441.3,2441.0,4.90067]
[1728461163134,7.48,2442.0,2440.8,4.91272]
[1728461163135,1.74191095,2441.1,2440.8,4.91272]
[1728461163409,1.74191095,2440.9,2440.7,4.09716]
[1728461163753,1.74191095,2440.9,2440.8,4.09701]
[1728461164623,0.7184,2441.2,2440.8,4.09701]
[1728461164624,3.77636784,2441.1,2440.8,4.09701]
[1728461164954,3.77636784,2441.1,2440.6,9.02179]
[1728461164958,3.77636784,2441.1,2440.6,4.92453]
[1728461165169,3.77636784,2441.1,2440.7,4.09708]
[1728461165853,3.77636784,2441.1,2440.6,4.92453]
[1728461165854,0.7184,2441.2,2441.0,4.09665]
[1728461165997,7.87231784,2441.5,2441.0,4.09665]
[1728461166229,1.87599,2441.4,2441.0,8.19324]
[1728461166371,3.77636784,2441.5,2441.1,0.08192826]
[1728461166572,3.77636784,2441.5,2441.2,4.09633]
[1728461167030,3.77636784,2441.5,2441.2,4.09624]
[1728461167904,3.77636784,2441.3,2441.0,4.09653]
[1728461168734,3.77636784,2441.3,2441.0,8.19311]
[1728461169027,3.77636784,2441.3,2441.0,4.09653]
[1728461169414,3.77636784,2441.3,2441.1,4.09649]
[1728461169982,3.77636784,2441.3,2441.0,4.09653]
[1728461170620,0.7184,2441.2,2440.8,4.09691]
[1728461170805,0.7184,2441.2,2440.9,4.09681]
[1728461171209,3.77636784,2441.1,2440.9,4.09681]
[1728461171681,4.22584462,2441.1,2440.6,4.09718]
[1728461171814,3.77636784,2440.7,2440.2,8.98646]
[1728461172240,3.77636784,2440.5,2440.3,4.09784]
[1728461172529,3.77636784,2440.5,2440.4,4.09768]
[1728461173168,3.77636784,2440.7,2440.4,4.09768]
[1728461173576,3.77636784,2440.7,2440.4,8.19527]
[1728461173813,3.77636784,2440.7,2440.4,4.09759]
[1728461176669,3.77636784,2440.7,2440.5,4.09751]
[1728461176949,3.77636784,2440.7,2440.4,8.19517]
[1728461177301,3.77636784,2440.7,2440.4,4.09758]
[1728461177686,3.77636784,2440.7,2440.5,4.09749]
[1728461178583,0.10021834,2440.6,2440.4,4.09758]
[1728461178761,0.10021834,2440.6,2440.3,4.09784]
[1728461178934,3.77636784,2440.5,2440.2,4.09791]
[1728461179290,3.87654982,2440.5,2440.2,4.09791]
[1728461179409,3.87654982,2440.5,2440.0,4.89543]
[1728461179410,3.87654982,2440.5,2440.0,3.7972]
[1728461179695,3.87654982,2440.5,2439.9,4.0984]
[1728461179828,3.77636784,2440.3,2440.0,4.09827]
[1728461180426,0.7184,2440.2,2439.9,8.19683]
[1728461180597,0.81837215,2440.2,2440.0,4.09835]
[1728461181176,0.81837215,2440.2,2439.8,0.7583]
[1728461181592,3.77636784,2440.1,2439.7,11.19753]
[1728461181596,3.77636784,2439.9,2439.6,4.93135]
[1728461181884,3.77636784,2439.9,2439.7,4.09884]
[1728461182114,0.09962139,2439.8,2439.7,4.09884]
[1728461182841,0.09962139,2439.8,2439.6,8.19795]
[1728461183294,8.59362784,2439.7,2439.2,4.09958]
[1728461183456,8.59362784,2439.7,2439.1,4.09973]
[1728461183457,3.77636784,2439.3,2439.1,4.09973]
[1728461183930,3.77636784,2439.3,2438.8,4.10027]
[1728461184349,3.77636784,2439.1,2438.8,4.10027]
[1728461184355,0.09922696,2439.0,2438.8,4.10027]
[1728461185626,3.77636784,2438.9,2438.6,4.10061]
[1728461185762,3.87558058,2438.9,2438.6,4.10061]
[1728461185911,3.77636784,2438.7,2438.3,0.8034]
[1728461186275,3.77636784,2438.5,2438.2,4.10129]
[1728461186278,3.77636784,2438.5,2438.3,4.10121]
[1728461186688,0.09807994,2438.4,2438.2,4.10129]
[1728461186693,3.77636784,2438.3,2438.0,4.10164]
[1728461187209,3.87448691,2438.3,2438.0,4.10164]
[1728461187213,3.77636784,2438.1,2437.9,4.10188]
[1728461187430,4.49476784,2438.1,2437.7,4.10218]
[1728461187940,3.77636784,2437.9,2437.8,4.10205]
[1728461187943,3.77636784,2437.9,2437.7,4.10221]
[1728461188379,0.09814758,2437.9,2437.8,4.10205]
[1728461188383,4.49476784,2438.1,2437.8,4.10205]
[1728461189004,0.7184,2438.1,2437.9,4.10182]
[1728461189361,0.7184,2438.1,2437.8,4.10205]
[1728461189561,4.49476784,2438.3,2438.0,4.10172]
[1728461191703,4.49476784,2438.3,2438.0,4.10161]
[1728461191896,4.49476784,2438.3,2438.1,4.10151]
[1728461192596,4.49476784,2438.3,2438.0,4.10161]
[1728461193606,0.09750628,2438.2,2438.0,4.10161]
[1728461193910,4.49476784,2438.3,2438.0,4.10161]
[1728461194065,0.0974816,2438.1,2438.0,4.10161]
[1728461194497,4.49476784,2438.3,2438.0,4.10161]
[1728461194728,4.49476784,2438.3,2437.8,4.10195]
[1728461194729,3.87384944,2438.1,2437.8,4.10194]
[1728461194896,3.77636784,2438.1,2437.8,4.10194]
[1728461195089,0.09744516,2438.0,2437.8,4.10194]
[1728461195538,3.77636784,2437.9,2437.6,4.10232]
[1728461195992,0.09721382,2437.8,2437.6,4.10232]
[1728461196392,3.77636784,2437.7,2437.4,4.1026]
[1728461196601,3.77636784,2437.5,2437.2,4.10305]
[1728461196807,3.77636784,2437.5,2437.1,4.10321]
[1728461197031,3.77636784,2437.5,2437.0,4.10334]
[1728461197032,0.81552295,2437.4,2437.0,4.1033]
[1728461197403,0.81552295,2437.4,2437.1,4.10323]
[1728461197404,3.77636784,2437.3,2437.1,4.10323]
[1728461197728,0.09712215,2437.2,2437.1,4.10323]
[1728461198111,3.77636784,2437.3,2437.0,8.2066]
[1728461198314,0.0971005,2437.2,2437.0,8.2066]
[1728461198514,3.77636784,2437.3,2437.0,4.1033]
[1728461199141,0.09725822,2437.2,2437.0,8.20659]
[1728461199635,0.0972289,2437.1,2437.0,4.10329]
[1728461199835,3.77636784,2437.3,2437.0,4.10329]
[1728461200672,3.77636784,2437.1,2436.6,4.104]
[1728461200971,3.77636784,2436.7,2436.5,4.10413]
[1728461201129,3.77636784,2436.7,2436.4,4.10435]
[1728461201313,0.09642468,2436.6,2436.4,4.10428]
[1728461201515,0.09642468,2436.6,2436.3,4.10443]
[1728461201713,0.09642468,2436.6,2436.3,8.20891]
[1728461202226,0.09642468,2436.6,2436.3,4.10443]
[1728461202631,0.81482468,2436.6,2436.3,4.10443]
[1728461202859,0.81482468,2436.6,2436.2,4.10473]
[1728461203187,3.77636784,2436.5,2436.1,4.10481]
[1728461203457,0.09607272,2436.4,2436.1,4.10481]
[1728461203666,3.77636784,2436.3,2436.1,4.10481]
[1728461203817,3.87239229,2436.3,2435.9,4.10514]
[1728461204018,3.87239229,2436.3,2435.9,8.2103]
[1728461204254,3.87239229,2436.3,2435.9,4.10514]
[1728461204466,3.87239229,2436.3,2435.7,0.7582]
[1728461204631,3.87239229,2436.3,2435.9,4.10515]
[1728461204829,3.87239229,2436.3,2435.9,8.2103]
[1728461205151,3.87239229,2436.3,2435.9,4.10515]
[1728461205461,3.87239229,2436.3,2435.9,8.21031]
[1728461205626,4.67005652,2436.3,2435.9,4.10515]
[1728461205847,3.77636784,2436.1,2435.9,4.10515]
[1728461206243,0.09519883,2436.0,2435.7,4.10548]
[1728461206447,0.09519883,2436.0,2435.8,4.10542]
[1728461206636,0.09519883,2436.0,2435.7,8.21095]
[1728461207082,0.09519883,2436.0,2435.8,4.10533]
[1728461207238,0.09519883,2436.0,2435.7,4.10547]
[1728461207429,3.77636784,2435.9,2435.7,4.10547]
[1728461207634,0.09500686,2435.8,2435.7,4.10547]
[1728461208147,0.09500686,2435.8,2435.4,0.8019]
[1728461208360,0.7184,2435.4,2434.8,4.10711]
[1728461208686,0.7184,2435.4,2434.5,0.07112831]
[1728461208687,0.7184,2434.8,2434.3,4.10781]
[1728461208839,3.77636784,2434.4,2434.2,4.10811]
[1728461209039,0.09457014,2434.3,2434.2,4.10802]
[1728461209235,0.09457014,2434.3,2433.9,4.10852]
[1728461209549,3.77636784,2434.0,2433.9,4.10852]
[1728461209703,0.09457014,2434.3,2433.9,4.10852]
[1728461209704,4.49476784,2434.2,2434.1,4.10829]
[1728461209999,3.77636784,2434.2,2434.1,4.10829]
[1728461210198,0.7184,2434.8,2434.1,4.10829]
[1728461210497,5.39172393,2434.8,2434.1,4.10819]
[1728461210804,10.44880632,2434.8,2434.1,4.10817]
[1728461210961,0.7184,2434.8,2434.2,0.08216091]
[1728461211298,0.7184,2434.8,2434.2,4.10799]
[1728461211598,0.7184,2434.8,2434.4,4.10778]
[1728461212671,0.7184,2434.8,2434.4,8.21545]
[1728461213000,5.39172393,2435.1,2434.6,4.10744]
[1728461213163,0.7184,2435.1,2434.6,4.10744]
[1728461213390,1.66820639,2435.1,2434.6,4.10744]
[1728461214805,1.66820639,2435.1,2434.7,4.10727]
[1728461215897,0.7184,2435.1,2434.8,4.1071]
[1728461216624,0.7184,2435.1,2434.9,4.10691]
[1728461216825,0.7184,2435.1,2434.8,4.1071]
[1728461217390,0.7184,2435.1,2434.6,4.10737]
[1728461218214,0.7184,2435.1,2434.6,4.10734]
[1728461219208,0.7184,2435.1,2434.8,4.10699]
[1728461219411,4.10611,2435.4,2434.9,4.10681]
[1728461219412,0.7184,2435.4,2434.9,4.10681]
[1728461219628,0.7184,2435.4,2434.8,4.10699]
[1728461219834,0.7184,2435.4,2434.8,8.21398]
[1728461220326,3.12675639,2435.4,2434.8,4.10699]
[1728461220990,7.23297639,2435.4,2434.8,4.10699]
[1728461222000,3.12675639,2435.4,2434.8,4.10699]
[1728461222205,0.7184,2435.4,2434.5,0.08213925]
[1728461222443,4.8246,2435.4,2434.8,4.107]
[1728461222598,0.7184,2435.4,2434.8,4.107]
[1728461222803,0.7184,2435.4,2434.9,4.10694]
[1728461223324,0.7184,2435.4,2435.1,4.10646]
[1728461223526,0.09135752,2435.3,2434.9,9.035044]
[1728461223726,0.09135752,2435.3,2435.0,4.10674]
[1728461224038,0.09135752,2435.3,2435.2,4.10643]
[1728461224337,0.09135752,2435.3,2435.1,4.10657]
[1728461224842,4.82419,2435.6,2434.9,8.21363]
[1728461225041,4.82419,2435.6,2435.0,4.10662]
[1728461225204,0.09150124,2435.5,2435.0,4.10662]
[1728461225407,0.09150124,2435.5,2435.1,4.10658]
[1728461225721,0.09150124,2435.5,2435.4,4.1061]
[1728461225901,0.09150124,2435.5,2435.3,4.10625]
[1728461226101,4.10554,2435.8,2435.2,4.10641]
[1728461226296,0.08846794,2435.4,2435.2,4.10641]
[1728461226534,16.40913,2435.9,2435.3,4.10627]
[1728461226754,4.82376,2435.9,2435.4,4.10608]
[1728461226902,0.7184,2435.9,2435.5,4.10588]
[1728461227650,0.7184,2436.1,2435.7,4.10558]
[1728461227796,0.7184,2436.1,2435.7,8.21116]
[1728461228001,2.02847342,2436.1,2435.8,4.10542]
[1728461228234,0.7184,2436.3,2435.9,4.10513]
[1728461228455,0.7184,2436.3,2435.8,4.10539]
[1728461228631,0.7184,2436.3,2435.7,4.10548]
[1728461228632,1.6754686,2436.3,2435.9,4.10523]
[1728461228832,0.7184,2436.3,2435.9,4.10523]
[1728461230222,0.7184,2436.3,2435.8,4.10541]
[1728461230670,0.7184,2436.3,2435.4,4.10605]
[1728461230961,0.7184,2436.3,2436.0,4.10494]
[1728461231532,0.7184,2436.3,2436.1,4.10488]
[1728461231860,4.82307,2436.3,2435.8,4.10528]
[1728461232565,8.61503662,2436.3,2435.8,4.10528]
[1728461232926,4.51036662,2436.3,2435.9,4.10524]
[1728461233660,0.7184,2436.3,2435.9,4.10524]
[1728461233862,0.7184,2436.3,2436.0,4.10508]
[1728461234368,0.7184,2436.3,2435.8,4.515808]
[1728461234581,0.7184,2436.3,2435.9,4.10525]
[1728461235161,0.7184,2436.3,2436.0,4.10506]
[1728461235471,0.7184,2436.3,2435.8,4.10528]
[1728461235683,5.68445166,2436.3,2435.8,4.10528]
[1728461236047,9.47641828,2436.3,2435.8,4.10528]
[1728461236797,9.47641828,2436.3,2435.8,8.2106]
[1728461237565,9.47641828,2436.3,2435.8,4.10528]
[1728461238399,1.57987166,2436.3,2435.8,4.10528]
[1728461238686,0.08915719,2436.2,2435.8,4.10528]
[1728461238900,0.7184,2436.3,2436.0,4.10504]
[1728461239063,0.7184,2436.3,2436.1,4.10491]
[1728461239392,0.7184,2436.3,2436.0,4.10504]
[1728461239566,0.7184,2436.3,2436.0,4.10499]
[1728461239999,0.7184,2436.5,2436.0,4.10499]
[1728461240199,0.7184,2436.5,2436.2,4.10471]
[1728461241495,0.7184,2436.5,2436.2,4.10464]
[1728461242695,0.7184,2436.5,2436.0,8.20995]
[1728461242852,1.57983166,2436.5,2436.1,4.10483]
[1728461243047,0.7184,2436.5,2436.3,4.10456]
[1728461243248,0.7184,2436.8,2436.3,4.10456]
[1728461243470,0.7184,2436.8,2436.5,4.10414]
[1728461243809,0.7184,2436.8,2436.6,4.10407]
[1728461244011,7.48,2437.0,2436.5,4.10414]
[1728461244012,8.1984,2437.0,2436.7,4.10391]
[1728461244302,0.7184,2437.0,2436.6,4.10406]
[1728461244963,1.200566,2437.0,2436.6,4.10406]
[1728461245385,0.7184,2437.0,2436.6,4.10406]
[1728461245589,0.7184,2437.0,2436.4,8.20855]
[1728461245809,0.7184,2437.0,2436.5,4.10416]
[1728461245810,4.82182,2437.0,2436.5,4.10416]
[1728461245961,4.82182,2437.0,2436.4,4.10425]
[1728461245962,4.10362,2436.9,2436.4,4.10425]
[1728461246168,9.16732728,2436.9,2436.4,4.10425]
[1728461246724,3.79196662,2436.5,2436.1,3.0]
[1728461247581,0.7184,2436.6,2436.1,7.1049]
[1728461247795,4.82249,2436.6,2436.1,7.1049]
[1728461248072,0.7184,2436.6,2436.2,4.10475]
[1728461248300,0.7184,2436.6,2435.9,4.10511]
[1728461248301,0.7184,2436.2,2435.9,4.10511]
[1728461248500,0.7184,2436.2,2435.9,8.21026]
[1728461248707,0.7184,2436.2,2435.9,4.10511]
[1728461249410,0.7184,2436.2,2435.7,4.92849]
[1728461249566,8.37918562,2436.1,2435.5,4.10581]
[1728461249767,7.89688662,2436.1,2435.5,4.10581]
[1728461250069,12.00195662,2436.1,2435.5,4.10577]
[1728461250270,9.16892228,2436.1,2435.5,4.10577]
[1728461250573,4.10509,2436.0,2435.5,4.10577]
[1728461251879,4.10509,2436.0,2435.4,4.1061]
[1728461251880,0.7184,2435.9,2435.4,4.1061]
[1728461252376,0.7184,2435.9,2435.6,4.10572]
[1728461252585,0.7184,2436.2,2435.7,4.10558]
[1728461253573,0.08641988,2436.1,2435.9,4.10522]
[1728461253805,0.08641988,2436.1,2435.7,4.10548]
[1728461254375,0.08641988,2436.1,2435.8,4.10529]
[1728461254578,0.08641988,2436.1,2435.8,4.10541]
[1728461254893,0.08641988,2436.1,2435.7,4.10548]
[1728461255082,0.08641988,2436.1,2435.7,8.21097]
[1728461256221,0.08641988,2436.1,2435.7,4.10548]
[1728461256728,4.19134988,2436.1,2435.6,4.10564]
[1728461257922,5.47198953,2436.1,2435.5,4.10585]
[1728461258136,1.36705953,2436.1,2435.5,4.10592]
[1728461258421,0.08641988,2436.1,2435.7,8.21096]
[1728461258833,0.08641988,2436.1,2435.7,4.10548]
[1728461259684,0.08641988,2436.1,2435.7,8.21098]
[1728461260396,0.08641988,2436.1,2435.7,4.10548]
[1728461260727,0.08489939,2436.1,2435.7,4.10548]
[1728461260927,0.08489939,2436.1,2435.8,4.10534]
[1728461261426,0.08489939,2436.1,2436.0,4.10509]
[1728461262333,4.82283,2436.4,2435.9,4.10525]
[1728461262625,0.08654926,2436.3,2436.0,4.10504]
[1728461263402,0.08654926,2436.3,2435.9,4.10525]
[1728461263606,0.08654926,2436.3,2436.0,4.10507]
[1728461263899,0.08654926,2436.3,2435.9,4.6357198]
[1728461264096,0.08654926,2436.3,2435.9,8.7408798]
[1728461264335,0.08654926,2436.3,2435.9,4.6356298]
[1728461265843,7.98310588,2436.3,2435.7,8.621498]
[1728461266008,0.7184,2436.2,2435.7,8.621498]
[1728461266398,0.08358436,2436.1,2435.7,8.621498]
[1728461266939,0.08358436,2436.1,2435.8,4.10535]
[1728461267411,0.08358436,2436.1,2435.7,4.516018]
[1728461267745,4.10509,2436.0,2435.6,4.10574]
[1728461267923,0.80188782,2435.9,2435.4,4.10598]
[1728461268122,0.80188782,2435.9,2435.4,5.008062]
[1728461269135,4.90725782,2435.9,2435.4,0.902082]
[1728461269439,4.10544,2435.8,2435.3,8.21232]
[1728461269711,4.59385444,2435.9,2435.4,4.10598]
[1728461269858,0.08327275,2435.7,2435.4,4.10598]
[1728461270152,0.08328122,2435.6,2435.4,4.10598]
[1728461270363,0.7184,2435.9,2435.5,4.10593]
[1728461270658,0.08337778,2435.8,2435.5,8.21178]
[1728461270859,0.08337778,2435.8,2435.5,4.10585]
[1728461271064,0.08337778,2435.8,2435.5,8.21168]
[1728461271356,0.08337778,2435.8,2435.5,4.10583]
[1728461272421,0.08337778,2435.8,2435.5,8.21167]
[1728461272624,0.08337778,2435.8,2435.5,5.0466402]
[1728461272823,0.08337778,2435.8,2435.5,9.1524802]
[1728461273128,0.08337778,2435.8,2435.5,5.0466402]
[1728461273471,0.08337778,2435.8,2435.7,4.10559]
[1728461274026,0.7184,2436.1,2435.7,4.10559]
[1728461274229,0.08337991,2435.8,2435.7,4.10559]
[1728461274459,0.7184,2436.1,2435.9,4.10523]
[1728461274663,0.7184,2436.3,2435.9,4.10523]
[1728461274865,0.7184,2436.3,2436.0,4.10509]
[1728461275071,0.7184,2436.3,2436.0,4.5237194]
[1728461275255,0.7184,2436.3,2436.0,4.105]
[1728461275463,0.7184,2436.3,2436.1,4.10487]
[1728461275762,0.7184,2436.3,2436.0,4.105]
[1728461275963,0.7184,2436.3,2436.0,8.20997]
[1728461276155,0.7184,2436.3,2436.0,4.10497]
[1728461276678,0.7184,2436.5,2436.0,8.20996]
[1728461277185,0.7184,2436.5,2436.0,8.20997]
[1728461277364,0.7184,2436.5,2436.0,4.10497]
[1728461277526,0.7184,2436.5,2436.1,4.1048]
[1728461277728,0.7184,2436.7,2436.2,4.10464]
[1728461277934,0.7184,2436.7,2436.4,4.10432]
[1728461279677,0.7184,2436.7,2436.3,4.10457]
[1728461280141,0.7184,2436.7,2436.0,4.10495]
[1728461280142,4.10409,2436.6,2436.0,4.10495]
[1728461280332,3.79196662,2436.3,2436.0,4.10495]
[1728461281289,0.7184,2436.4,2436.0,4.10495]
[1728461282374,0.7184,2436.7,2436.3,4.10457]
[1728461282553,0.7184,2436.7,2436.1,0.8234]
[1728461282554,4.82239,2436.7,2436.1,4.92832]
[1728461282766,4.82239,2436.7,2436.2,4.10474]
[1728461283285,0.7184,2436.7,2436.3,8.20907]
[1728461283450,0.7184,2436.7,2436.3,8.20898]
[1728461283646,0.08382594,2436.6,2436.3,4.10449]
[1728461283885,0.08382594,2436.6,2436.4,4.10438]
[1728461284059,0.08382594,2436.6,2436.3,4.10448]
[1728461285783,0.7184,2436.4,2435.9,4.10515]
[1728461285990,3.87574924,2436.3,2435.9,4.10515]
[1728461286784,0.08378262,2436.3,2435.9,4.10515]
[1728461287390,0.08378262,2436.3,2436.0,4.10506]
[1728461287555,0.08378262,2436.3,2436.1,4.10483]
[1728461289184,0.08378262,2436.3,2435.9,4.10511]
[1728461289919,4.51036662,2436.1,2435.5,8.98881]
[1728461290118,4.51036662,2436.1,2435.6,4.10574]
[1728461290287,0.08359084,2436.0,2435.6,4.10574]
[1728461291119,0.08359084,2436.0,2435.7,4.10558]
[1728461291479,0.08359084,2436.0,2435.7,4.1055]
[1728461292504,0.08359084,2436.0,2435.6,4.10575]
[1728461293913,0.08359084,2436.0,2435.7,4.10557]
[1728461294117,0.08359084,2436.0,2435.8,4.10542]
[1728461294284,0.08359084,2436.0,2435.7,4.10557]
[1728461296224,0.08359084,2436.0,2435.5,8.21157]
[1728461296448,0.08359084,2436.0,2435.5,4.10576]
[1728461296792,4.18870084,2436.0,2435.5,4.10576]
[1728461297107,5.63833654,2436.0,2435.5,4.10576]
[1728461297431,5.63833654,2436.0,2435.4,4.10605]
[1728461297432,4.10527,2435.9,2435.4,4.10605]
[1728461297635,0.7184,2435.8,2435.4,4.10605]
[1728461297824,0.80181434,2435.8,2435.5,4.1059]
[1728461298019,0.80181434,2435.8,2435.5,4.10584]
[1728461302122,0.80181434,2435.8,2435.5,4.1058]
[1728461302892,0.80181434,2435.8,2435.3,4.88334]
[1728461302893,0.80181434,2435.8,2435.3,4.10613]
[1728461303154,3.79196662,2435.5,2434.9,4.86331]
[1728461303329,0.7184,2435.3,2434.9,4.10681]
[1728461303630,0.08288056,2435.2,2434.9,4.10681]
[1728461303842,0.7184,2435.3,2434.9,4.10681]
[1728461304027,0.08283225,2435.1,2435.0,4.10665]
[1728461304225,0.7184,2435.3,2435.0,4.10665]
[1728461304422,0.08283225,2435.1,2435.0,4.10665]
[1728461304622,0.7184,2435.3,2435.0,4.10665]
[1728461304937,0.08283225,2435.1,2435.0,4.10665]
[1728461305095,0.7184,2435.3,2435.0,4.10665]
[1728461305296,0.08283225,2435.1,2435.0,4.10665]
[1728461305496,0.7184,2435.3,2435.1,4.10659]
[1728461306237,0.7184,2435.3,2435.0,4.10677]
[1728461306437,0.7184,2435.3,2434.9,4.10681]
[1728461306599,1.58004766,2435.3,2434.7,4.86367]
[1728461306972,5.68640766,2435.3,2434.8,4.1071]
[1728461307618,4.10644,2435.2,2434.7,4.10717]
[1728461307799,0.7184,2435.1,2434.5,4.10752]
[1728461307998,8.61700662,2435.1,2434.5,8.21504]
[1728461308200,3.79196662,2434.9,2434.5,4.10752]
[1728461308435,4.51036662,2435.1,2434.5,4.10752]
[1728461308642,4.51036662,2435.1,2434.7,4.10725]
[1728461309440,4.51036662,2435.1,2434.8,4.10697]
[1728461309441,0.7184,2435.1,2434.8,4.10697]
[1728461309641,0.7184,2435.1,2434.9,4.10684]
[1728461309934,0.7184,2435.1,2434.8,4.10697]
[1728461310504,0.7184,2435.1,2434.8,8.21397]
[1728461310844,0.7184,2435.1,2434.8,4.10697]
[1728461311045,0.7184,2435.1,2434.8,8.21397]
[1728461311243,0.7184,2435.1,2434.8,4.10697]
[1728461311653,4.51036662,2435.1,2434.6,8.21465]
[1728461311945,5.24636371,2435.1,2434.6,8.21462]
[1728461312121,0.7184,2434.8,2434.4,4.31021934]
[1728461312321,0.7184,2434.8,2434.5,4.10759]
[1728461312535,0.7184,2434.8,2434.4,4.31021934]
[1728461312740,3.79196662,2434.7,2434.4,0.20253934]
[1728461313607,0.08236196,2434.6,2434.4,0.20253934]
[1728461313812,0.08236196,2434.6,2434.4,4.31028934]
[1728461314548,0.08236196,2434.6,2434.4,8.41797934]
[1728461314718,0.08236196,2434.6,2434.4,4.31022934]
[1728461314914,0.7184,2434.8,2434.5,4.10761]
[1728461315247,0.7184,2434.8,2434.4,4.31022934]
[1728461315248,0.08230892,2434.7,2434.4,4.10768]
[1728461315627,1.200927,2434.8,2434.4,4.10768]
[1728461315628,0.7184,2434.6,2434.4,4.10768]
[1728461315828,0.08221226,2434.5,2434.4,4.10768]
[1728461317449,4.51036662,2434.9,2434.4,4.10768]
[1728461317653,5.44566799,2434.9,2434.6,4.10738]
[1728461317851,5.44566799,2434.9,2434.6,8.21476]
[1728461318053,0.7184,2434.9,2434.7,4.10725]
[1728461318967,0.7184,2434.9,2434.6,8.21474]
[1728461319162,0.7184,2434.9,2434.6,4.10736]
[1728461319377,0.7184,2434.9,2434.6,8.21469]
[1728461319520,0.7184,2434.9,2434.6,4.10733]
[1728461319859,0.7184,2434.9,2434.6,8.21467]
[1728461320055,0.7184,2434.9,2434.7,4.10725]
[1728461320227,0.7184,2434.9,2434.6,4.10733]
[1728461320433,0.7184,2434.9,2434.6,8.21468]
[1728461321122,0.7184,2434.9,2434.6,6.21468]
[1728461321460,0.7184,2434.9,2434.7,4.10725]
[1728461321836,0.7184,2434.9,2434.6,4.10733]
[1728461322156,0.7184,2434.9,2434.6,8.21469]
[1728461322357,0.7184,2434.9,2434.6,4.10733]
[1728461322533,0.7184,2434.9,2434.7,4.10725]
[1728461323923,4.51036662,2435.1,2434.8,4.10711]
[1728461324157,1.58008966,2435.1,2434.8,4.10708]
[1728461324323,1.58008966,2435.1,2434.6,4.10733]
[1728461324523,5.68669966,2435.1,2434.6,4.10733]
[1728461324752,9.47866628,2435.1,2434.6,4.10733]
[1728461324929,5.37205628,2435.1,2434.7,4.10726]
[1728461325344,5.37205628,2435.1,2434.6,4.10733]
[1728461326168,9.47869628,2435.1,2434.6,4.10733]